bitfinex/quotes_BTCUSD_20250123
["timestamp","ask_amount","ask_price","bid_price","bid_amount"]
[1737601194796,0.6488429,102620.0,102610.0,0.00029904]
[1737601195674,0.6489854,102620.0,102610.0,0.00029904]
[1737601196167,0.6939854,102620.0,102610.0,0.00029904]
[1737601196679,0.1944712,102590.0,102580.0,0.00039625]
[1737601196927,0.68151167,102590.0,102580.0,0.00039625]
[1737601197183,0.6805319,102590.0,102580.0,0.00039625]
[1737601197423,0.74011032,102590.0,102580.0,0.00039625]
[1737601197639,0.84271032,102590.0,102580.0,0.00039625]
[1737601197878,1.012194,102570.0,102560.0,0.00029862]
[1737601198079,1.5550909,102570.0,102560.0,0.00044967]
[1737601200319,0.3162992,102560.0,102540.0,0.55214509]
[1737601200495,0.09734729,102550.0,102540.0,0.55213509]
[1737601200692,0.3893569,102550.0,102540.0,0.55213509]
[1737601200902,0.3893569,102550.0,102520.0,0.10758053]
[1737601200903,0.6402932,102540.0,102520.0,0.10758053]
[1737601201087,0.09832706,102530.0,102520.0,0.09799091]
[1737601201295,0.29200961,102530.0,102520.0,0.30509533]
[1737601201494,0.29200961,102530.0,102520.0,0.40263633]
[1737601202188,1.0288889,102530.0,102520.0,0.00044991]
[1737601202391,1.0296601,102530.0,102520.0,0.00044991]
[1737601202592,0.5855889,102530.0,102520.0,0.00044991]
[1737601202937,0.6355889,102530.0,102520.0,0.00044991]
[1737601203350,0.35184961,102530.0,102520.0,0.20756933]
[1737601203559,0.30184961,102530.0,102520.0,3.33991003]
[1737601203706,0.29200961,102530.0,102520.0,0.44811003]
[1737601203927,0.30184961,102530.0,102520.0,0.36731003]
[1737601204137,0.30184961,102530.0,102520.0,0.35756933]
[1737601204331,0.30184961,102530.0,102520.0,1.16351003]
[1737601204985,0.29200961,102530.0,102520.0,1.16351003]
[1737601205179,0.30184961,102530.0,102520.0,0.35756933]
[1737601205401,0.29200961,102530.0,102520.0,0.35756933]
[1737601205612,0.30184961,102530.0,102520.0,0.35756933]
[1737601206382,0.29200961,102530.0,102520.0,0.35756933]
[1737601206579,0.30184961,102530.0,102520.0,0.35756933]
[1737601207352,0.30184961,102530.0,102520.0,2.55119813]
[1737601207568,0.3991969,102530.0,102520.0,0.15044991]
[1737601207770,0.4967289,102530.0,102520.0,0.15044991]
[1737601208617,0.5705001,102530.0,102520.0,0.00044991]
[1737601210063,0.5705001,102530.0,102520.0,0.35756933]
[1737601210064,0.3991969,102530.0,102520.0,0.35756933]
[1737601210694,0.4967289,102530.0,102520.0,0.15044991]
[1737601210894,0.4967289,102530.0,102520.0,0.24799091]
[1737601211445,0.4967289,102530.0,102520.0,0.35756933]
[1737601211860,0.4967289,102530.0,102520.0,0.26002833]
[1737601212002,0.4967289,102530.0,102520.0,0.35756933]
[1737601212592,1.0387289,102530.0,102520.0,0.35756933]
[1737601212809,0.9411969,102530.0,102520.0,0.36731003]
[1737601213914,0.30184961,102530.0,102520.0,3.60761725]
[1737601214086,0.29200961,102530.0,102520.0,3.24993883]
[1737601214284,0.30184961,102530.0,102520.0,3.24993883]
[1737601214673,0.30184961,102530.0,102520.0,3.35951725]
[1737601215035,0.30200961,102530.0,102520.0,3.24993883]
[1737601215259,0.30200961,102530.0,102520.0,0.51083883]
[1737601215459,0.35200961,102530.0,102520.0,0.36731003]
[1737601216717,0.35200961,102530.0,102520.0,0.38653883]
[1737601217254,0.29200961,102530.0,102520.0,2.50363883]
[1737601217461,0.30200961,102530.0,102520.0,2.61760828]
[1737601217666,0.29200961,102530.0,102520.0,2.66290828]
[1737601218252,0.29200961,102530.0,102520.0,1.98332986]
[1737601218411,0.34200961,102530.0,102520.0,0.62080106]
[1737601218608,0.34200961,102530.0,102520.0,0.41700106]
[1737601219032,0.34200961,102530.0,102520.0,0.37170106]
[1737601226705,0.4868889,102530.0,102520.0,0.36731003]
[1737601226933,0.4868889,102530.0,102520.0,0.35756933]
[1737601227288,0.4868889,102530.0,102520.0,0.20756933]
[1737601227470,0.4868889,102530.0,102520.0,0.11002833]
[1737601227813,0.4868889,102530.0,102520.0,0.20756933]
[1737601228841,0.5106601,102530.0,102520.0,0.15044991]
[1737601229046,0.5106601,102530.0,102520.0,0.26002833]
[1737601230761,0.53035601,102530.0,102520.0,0.26002833]
[1737601231317,0.62974704,102530.0,102520.0,0.00044991]
[1737601231518,0.67974704,102530.0,102520.0,0.00044991]
[1737601231735,0.65668481,102530.0,102520.0,0.00044991]
[1737601231951,0.61655004,102530.0,102520.0,0.00044991]
[1737601232099,0.66165004,102530.0,102520.0,0.00044991]
[1737601232949,0.71165004,102530.0,102520.0,0.00044991]
[1737601233174,0.60668481,102530.0,102520.0,0.21731003]
[1737601233386,0.30244961,102530.0,102520.0,0.36731003]
[1737601235844,0.29200961,102530.0,102520.0,0.36731003]
[1737601236040,0.30244961,102530.0,102520.0,0.36731003]
[1737601236446,0.9417969,102530.0,102520.0,0.36731003]
[1737601236671,0.84444961,102530.0,102520.0,0.36731003]
[1737601237881,0.89444961,102530.0,102520.0,0.36731003]
[1737601238487,0.84444961,102530.0,102520.0,0.36731003]
[1737601239985,0.84444961,102530.0,102520.0,0.35756933]
[1737601240188,0.9417969,102530.0,102520.0,0.20756933]
[1737601240389,1.0401001,102530.0,102520.0,0.11002833]
[1737601240618,1.1463001,102530.0,102520.0,0.00044991]
[1737601240780,1.1947001,102530.0,102520.0,0.00044991]
[1737601241186,1.2439289,102530.0,102520.0,0.00044991]
[1737601241580,0.7019289,102530.0,102520.0,0.00044991]
[1737601242013,0.7027001,102530.0,102520.0,0.11002833]
[1737601242236,0.3893569,102530.0,102520.0,0.20756933]
[1737601242432,0.4978089,102530.0,102520.0,0.20756933]
[1737601242633,0.4978089,102530.0,102520.0,0.11002833]
[1737601242942,0.4978089,102530.0,102520.0,0.20756933]
[1737601244609,0.4002769,102530.0,102520.0,0.20756933]
[1737601244842,0.47652672,102530.0,102520.0,0.20756933]
[1737601245095,0.48744672,102530.0,102520.0,0.20756933]
[1737601245351,1.02944672,102530.0,102520.0,0.20756933]
[1737601246072,1.12697872,102530.0,102520.0,0.20756933]
[1737601246332,1.02944672,102530.0,102520.0,0.20756933]
[1737601246564,1.02944672,102530.0,102520.0,0.35756933]
[1737601246823,0.39009943,102530.0,102520.0,0.44521003]
[1737601247056,0.44009943,102530.0,102520.0,0.44521003]
[1737601247494,0.39009943,102530.0,102520.0,0.36731003]
[1737601248161,0.30292961,102530.0,102520.0,0.36731003]
[1737601250657,0.30144192,102530.0,102520.0,0.36731003]
[1737601251143,0.29052192,102530.0,102520.0,5.64086454]
[1737601251377,0.27101592,102530.0,102520.0,5.64086454]
[1737601251878,0.27101592,102530.0,102520.0,1.91886454]
[1737601257203,0.21249792,102530.0,102520.0,1.91886454]
[1737601257496,0.15397992,102530.0,102520.0,1.91886454]
[1737601257874,0.15397992,102530.0,102520.0,1.94186454]
[1737601258068,0.13447392,102530.0,102520.0,1.96186454]
[1737601258280,0.05644992,102530.0,102520.0,1.96186454]
[1737601258486,0.05119794,102530.0,102520.0,1.96186454]
[1737601259255,0.01218594,102530.0,102520.0,1.96186454]
[1737601259448,9.4e-07,102530.0,102520.0,1.96186454]
[1737601259656,9.4e-07,102530.0,102520.0,0.76196454]
[1737601260370,9.4e-07,102530.0,102520.0,0.71896454]
[1737601265928,0.00014354,102530.0,102520.0,0.71896454]
[1737601266296,0.05014354,102530.0,102520.0,0.20756933]
[1737601266512,0.05112331,102530.0,102520.0,0.20756933]
[1737601266710,0.05014354,102530.0,102520.0,0.20756933]
[1737601267171,0.05014354,102530.0,102520.0,0.35756933]
[1737601267390,0.54312331,102530.0,102520.0,0.20756933]
[1737601267589,0.54214354,102530.0,102520.0,0.20756933]
[1737601268040,0.54214354,102530.0,102520.0,0.35756933]
[1737601268997,0.73702283,102530.0,102520.0,0.20756933]
[1737601269695,0.73702283,102530.0,102520.0,0.35756933]
[1737601269874,0.81212283,102530.0,102520.0,0.26002833]
[1737601270288,0.81289403,102530.0,102520.0,0.11002833]
[1737601270495,0.86059403,102530.0,102520.0,0.11002833]
[1737601271520,0.88359403,102530.0,102520.0,0.11002833]
[1737601271720,0.34159403,102530.0,102520.0,0.00044991]
[1737601272089,0.34159403,102530.0,102520.0,0.11002833]
[1737601273133,0.31782283,102530.0,102520.0,0.20756933]
[1737601273280,0.31782283,102530.0,102520.0,0.11002833]
[1737601273483,0.61724354,102530.0,102520.0,0.35756933]
[1737601273694,0.62868354,102530.0,102520.0,0.35756933]
[1737601273897,0.82356283,102530.0,102520.0,0.35756933]
[1737601274098,0.87006283,102530.0,102520.0,0.00044991]
[1737601274573,0.94306283,102530.0,102520.0,0.00044991]
[1737601274891,0.94383403,102530.0,102520.0,0.00044991]
[1737601275149,0.40183403,102530.0,102520.0,0.00044991]
[1737601275342,0.40106283,102530.0,102520.0,0.00044991]
[1737601275714,0.40183403,102530.0,102520.0,0.11002833]
[1737601275892,0.32806283,102530.0,102520.0,0.20756933]
[1737601276315,0.23053083,102530.0,102520.0,0.20756933]
[1737601276735,0.32806283,102530.0,102520.0,0.20756933]
[1737601276945,0.08668354,102530.0,102520.0,0.35756933]
[1737601277224,0.01158354,102530.0,102520.0,0.35756933]
[1737601277590,0.06158354,102530.0,102520.0,0.35756933]
[1737601277801,0.01158354,102530.0,102520.0,0.35756933]
[1737601277996,0.55358354,102530.0,102520.0,0.35756933]
[1737601280251,0.59214354,102530.0,102520.0,0.37679813]
[1737601280439,0.54214354,102530.0,102520.0,2.55067655]
[1737601280675,0.54214354,102530.0,102520.0,2.62647655]
[1737601281500,0.00014354,102530.0,102520.0,2.62647655]
[1737601281753,0.00014354,102530.0,102520.0,2.77212384]
[1737601284925,0.25359854,102530.0,102520.0,2.81512384]
[1737601285133,0.11705754,102530.0,102520.0,2.81512384]
[1737601285538,0.11705754,102530.0,102520.0,2.79512384]
[1737601285743,0.11705754,102530.0,102520.0,2.81512384]
[1737601286187,0.07804554,102530.0,102520.0,2.81512384]
[1737601286341,0.03903354,102530.0,102520.0,2.81512384]
[1737601286560,0.01952754,102530.0,102520.0,2.81512384]
[1737601287032,2.154e-05,102530.0,102520.0,2.81512384]
[1737601287466,0.0001426,102540.0,102520.0,2.81512384]
[1737601287467,0.0001426,102570.0,102560.0,0.2667318]
[1737601287669,0.0001426,102570.0,102560.0,5.51487663]
[1737601287867,0.2926426,102570.0,102560.0,4.60067663]
[1737601288081,0.3426426,102570.0,102560.0,0.38605092]
[1737601288510,0.3536026,102570.0,102560.0,0.36682212]
[1737601288759,0.3536026,102570.0,102560.0,0.38605092]
[1737601289889,0.3536026,102570.0,102560.0,0.36682212]
[1737601290109,0.3536026,102570.0,102560.0,0.38605092]
[1737601292025,0.3536026,102570.0,102560.0,0.49562934]
[1737601293012,0.3036026,102570.0,102560.0,0.49562934]
[1737601293214,0.3426426,102570.0,102560.0,0.49562934]
[1737601293416,0.3536026,102570.0,102560.0,0.49562934]
[1737601293727,0.3426426,102570.0,102560.0,0.49562934]
[1737601293932,0.3536026,102570.0,102560.0,0.50554967]
[1737601295232,0.2926426,102570.0,102560.0,0.60289696]
[1737601295429,0.2926426,102570.0,102560.0,4.08099696]
[1737601299827,0.2926426,102570.0,102560.0,0.72969696]
[1737601300009,0.2926426,102570.0,102560.0,5.65159696]
[1737601301629,0.1951476,102570.0,102560.0,5.65159696]
[1737601301826,0.1951476,102570.0,102560.0,5.71999664]
[1737601302033,0.1561496,102570.0,102560.0,5.71999664]
[1737601302232,0.0976526,102570.0,102560.0,5.71999664]
[1737601302431,0.06651419,102570.0,102560.0,5.71999664]
[1737601303140,1.9e-07,102570.0,102560.0,5.71999664]
[1737601303505,1.9e-07,102570.0,102560.0,0.79809664]
[1737601305117,1.9e-07,102570.0,102560.0,0.77269696]
[1737601305316,1.9e-07,102570.0,102560.0,0.79809664]
[1737601306658,0.05,102600.0,102590.0,0.2667038]
[1737601306858,0.01058723,102600.0,102590.0,5.51484863]
[1737601307071,0.02958723,102600.0,102590.0,5.51484863]
[1737601307272,0.32199723,102600.0,102590.0,5.51484863]
[1737601307878,0.32199723,102600.0,102590.0,5.25584863]
[1737601308486,0.32199723,102600.0,102590.0,4.98604863]
[1737601308702,0.32199723,102600.0,102590.0,4.96254863]
[1737601310487,0.31126473,102600.0,102590.0,4.96254863]
[1737601310905,0.31126473,102600.0,102590.0,0.59294863]
[1737601311115,0.31126473,102600.0,102590.0,5.51484863]
[1737601311570,0.31140723,102600.0,102590.0,5.51484863]
[1737601312783,0.31140723,102600.0,102590.0,4.48044863]
[1737601314992,0.29240723,102600.0,102590.0,4.48044863]
[1737601315428,0.09246678,102600.0,102590.0,4.61230609]
[1737601315571,0.03398778,102600.0,102590.0,3.80980609]
[1737601315767,0.03398778,102600.0,102590.0,3.42930609]
[1737601315973,0.00771319,102600.0,102590.0,3.42930609]
[1737601316305,1.9e-07,102600.0,102590.0,3.42930609]
[1737601316534,0.25342419,102600.0,102590.0,0.72480609]
[1737601316946,0.25342419,102600.0,102590.0,3.24790609]
[1737601317082,0.23393119,102600.0,102590.0,3.05330609]
[1737601317285,0.21443819,102600.0,102590.0,3.05330609]
[1737601317544,0.15595919,102600.0,102590.0,3.05330609]
[1737601318214,0.09748019,102600.0,102590.0,3.05330609]
[1737601318351,0.05849419,102600.0,102590.0,3.05330609]
[1737601320906,0.01950819,102600.0,102590.0,3.05330609]
[1737601321133,1.519e-05,102600.0,102590.0,3.05330609]
[1737601322672,0.0001425,102620.0,102610.0,0.2666848]
[1737601322915,0.0001425,102620.0,102610.0,3.20892963]
[1737601323116,0.2924925,102620.0,102610.0,2.49762963]
[1737601325958,0.1950475,102620.0,102610.0,2.66402963]
[1737601326132,0.0191425,102650.0,102640.0,0.1692288]
[1737601326331,0.01964612,102650.0,102640.0,1.22860063]
[1737601326643,0.31191612,102650.0,102640.0,1.11902221]
[1737601327099,0.31191612,102650.0,102640.0,1.14442189]
[1737601327499,0.31191612,102650.0,102640.0,1.12519309]
[1737601327720,0.31191612,102650.0,102640.0,1.14442189]
[1737601328185,0.31191612,102650.0,102640.0,1.16863637]
[1737601328588,0.31191612,102650.0,102640.0,1.14442189]
[1737601329246,0.30821275,102650.0,102640.0,1.25400031]
[1737601329446,0.28921275,102650.0,102640.0,1.25400031]
[1737601329646,0.30821275,102650.0,102640.0,5.54020031]
[1737601329838,0.30821275,102650.0,102640.0,3.90100031]
[1737601329983,0.30821275,102650.0,102640.0,3.91053845]
[1737601330575,0.28921275,102650.0,102640.0,3.91053845]
[1737601331007,0.25024475,102650.0,102640.0,3.93475293]
[1737601331211,0.17230875,102650.0,102640.0,3.91053845]
[1737601331443,0.17230875,102650.0,102640.0,3.93475293]
[1737601331444,0.15282475,102650.0,102640.0,3.93475293]
[1737601332272,0.09388847,102650.0,102640.0,3.95775293]
[1737601332485,0.02541938,102650.0,102640.0,4.00875293]
[1737601332868,0.02541938,102650.0,102640.0,4.08685293]
[1737601333070,0.1333024,102680.0,102640.0,4.08685293]
[1737601333270,0.1523024,102680.0,102670.0,0.37620622]
[1737601333469,0.1523024,102680.0,102670.0,5.27006108]
[1737601333470,0.42568341,102680.0,102670.0,5.27006108]
[1737601333675,0.44468341,102680.0,102670.0,5.27006108]
[1737601334795,0.42568341,102680.0,102670.0,1.5291466]
[1737601335005,0.42568341,102680.0,102670.0,1.4054466]
[1737601335972,0.42568341,102680.0,102670.0,1.42966108]
[1737601336827,0.42568341,102680.0,102670.0,1.52700837]
[1737601337038,0.37908341,102680.0,102670.0,1.50279389]
[1737601337254,0.39808341,102680.0,102670.0,1.50279389]
[1737601337664,0.36912341,102680.0,102670.0,1.63658679]
[1737601338284,0.36912341,102680.0,102670.0,1.64629428]
[1737601338487,0.29252341,102680.0,102670.0,1.64629428]
[1737601340095,0.29252341,102680.0,102670.0,5.57409428]
[1737601341034,0.29252341,102680.0,102670.0,5.57567762]
[1737601342435,0.29243472,102680.0,102670.0,5.57567762]
[1737601343192,0.21452272,102680.0,102670.0,5.61867762]
[1737601343528,0.21452272,102680.0,102670.0,5.66437762]
[1737601343529,0.18947807,102680.0,102670.0,5.66437762]
[1737601344206,0.09208807,102680.0,102670.0,5.66437762]
[1737601344995,0.09208807,102680.0,102670.0,5.6373946]
[1737601345196,0.09208807,102680.0,102670.0,5.68412406]
[1737601345397,0.01417607,102680.0,102670.0,5.68412406]
[1737601345603,7e-08,102680.0,102670.0,5.65990958]
[1737601345776,0.0002023,102690.0,102680.0,4.92055221]
[1737601345980,0.0002023,102690.0,102680.0,5.26404015]
[1737601346238,0.0002023,102690.0,102680.0,5.28623676]
[1737601346538,0.2923623,102690.0,102680.0,5.28623676]
[1737601346919,0.2923623,102690.0,102680.0,5.26404015]
[1737601347122,0.2923623,102690.0,102680.0,5.28623676]
[1737601347911,0.2923623,102690.0,102680.0,5.43623676]
[1737601348147,0.2144583,102690.0,102680.0,5.43623676]
[1737601348352,0.1949823,102690.0,102680.0,5.51933676]
[1737601349127,0.1949823,102690.0,102680.0,5.38917276]
[1737601349364,0.1949823,102690.0,102680.0,5.18497276]
[1737601349927,0.1949823,102690.0,102680.0,5.09837615]
[1737601350130,0.1949823,102690.0,102680.0,3.62699313]
[1737601350303,0.1949823,102690.0,102680.0,3.65397615]
[1737601350505,0.2139823,102690.0,102680.0,3.40627615]
[1737601350724,0.2904823,102690.0,102680.0,0.23395044]
[1737601350928,0.2714823,102690.0,102680.0,0.20696742]
[1737601351064,0.3198823,102690.0,102680.0,0.20696742]
[1737601351860,0.3198823,102690.0,102680.0,0.35696742]
[1737601355455,0.51460959,102690.0,102680.0,0.10957842]
[1737601355702,0.51460959,102690.0,102680.0,0.20696742]
[1737601358597,0.41722959,102690.0,102680.0,0.20696742]
[1737601359327,0.3198823,102690.0,102680.0,0.31654584]
[1737601359587,0.2904823,102690.0,102680.0,2.39099313]
[1737601359782,0.1949823,102690.0,102680.0,2.39099313]
[1737601359981,0.1949823,102690.0,102680.0,2.28169313]
[1737601360186,0.2139823,102690.0,102680.0,2.28169313]
[1737601360394,0.1949823,102690.0,102680.0,2.28169313]
[1737601360613,0.1949823,102690.0,102680.0,2.35749313]
[1737601361708,0.1949823,102690.0,102680.0,2.35779196]
[1737601362343,0.1951246,102690.0,102680.0,2.35779196]
[1737601365446,0.1951246,102690.0,102680.0,2.28199196]
[1737601365651,0.1951246,102690.0,102680.0,0.56419196]
[1737601365837,0.1951246,102690.0,102680.0,5.38735596]
[1737601367362,0.1951246,102690.0,102680.0,4.35099196]
[1737601369414,0.1951246,102690.0,102680.0,4.47369196]
[1737601369832,0.1951246,102690.0,102680.0,2.71179196]
[1737601370067,0.1951246,102690.0,102680.0,2.66039196]
[1737601371185,0.1951246,102690.0,102680.0,2.61349196]
[1737601376654,0.1561766,102690.0,102680.0,2.61349196]
[1737601376893,0.0001423,102710.0,102700.0,0.09737]
[1737601377038,0.0191423,102710.0,102700.0,4.38868832]
[1737601377263,0.0191423,102710.0,102700.0,0.96453641]
[1737601377466,0.3112423,102710.0,102700.0,0.96453641]
[1737601378860,0.31069668,102710.0,102700.0,0.96453641]
[1737601379261,0.31069668,102710.0,102700.0,0.51563641]
[1737601379635,0.31069668,102710.0,102700.0,0.49403641]
[1737601380965,0.31069668,102710.0,102700.0,0.48333641]
[1737601381534,0.31069668,102710.0,102700.0,0.49282245]
[1737601383488,0.31069668,102710.0,102700.0,0.60240087]
[1737601383688,0.31069668,102710.0,102700.0,0.49282245]
[1737601383918,0.41309668,102710.0,102700.0,0.22617516]
[1737601384051,0.42293668,102710.0,102700.0,0.20694842]
[1737601384258,0.42293668,102710.0,102700.0,0.09737]
[1737601384459,0.42293668,102710.0,102700.0,0.20694842]
[1737601385065,0.52028397,102710.0,102700.0,0.10957842]
[1737601386529,0.61764497,102710.0,102700.0,0.10957842]
[1737601387012,0.61764497,102710.0,102700.0,0.10987725]
[1737601387381,0.63094727,102710.0,102700.0,0.00029883]
[1737601387589,0.64078727,102710.0,102700.0,0.00029883]
[1737601388333,0.64078727,102710.0,102700.0,0.10987725]
[1737601388534,0.66078727,102710.0,102700.0,0.10987725]
[1737601388728,0.52042627,102710.0,102700.0,0.20724725]
[1737601389578,0.51058627,102710.0,102700.0,0.20724725]
[1737601389792,0.52042627,102710.0,102700.0,0.20724725]
[1737601390003,0.42307898,102710.0,102700.0,0.20724725]
[1737601390411,0.5102488,102710.0,102700.0,0.20724725]
[1737601390673,0.5102488,102710.0,102700.0,0.10987725]
[1737601390674,0.60759609,102710.0,102700.0,0.10987725]
[1737601390916,0.72495709,102710.0,102700.0,0.00029883]
[1737601392514,0.63778727,102710.0,102700.0,0.00029883]
[1737601393092,0.58058627,102710.0,102700.0,0.00029883]
[1737601393314,0.68778727,102710.0,102700.0,0.00029883]
[1737601394399,0.71078727,102710.0,102700.0,0.00029883]
[1737601394803,0.70378727,102710.0,102700.0,0.00029883]
[1737601395791,0.65378727,102710.0,102700.0,0.00029883]
[1737601397102,0.63378727,102710.0,102700.0,0.00029883]
[1737601398124,0.64367715,102710.0,102700.0,0.00029883]
[1737601400257,1.53822365,102710.0,102700.0,0.00029883]
[1737601400412,1.50837715,102710.0,102700.0,0.00029883]
[1737601402118,1.51853715,102710.0,102700.0,0.00029883]
[1737601402315,1.52837715,102710.0,102700.0,0.00029883]
[1737601403172,1.49853715,102710.0,102700.0,0.00029883]
[1737601403568,1.50837715,102710.0,102700.0,0.00029883]
[1737601405124,1.51853715,102710.0,102700.0,0.00029883]
[1737601405279,1.52837715,102710.0,102700.0,0.00029883]
[1737601405485,1.51853715,102710.0,102700.0,0.00029883]
[1737601405693,1.46101615,102710.0,102700.0,0.20724725]
[1737601406271,1.46101615,102710.0,102700.0,0.10987725]
[1737601406494,1.46101615,102710.0,102700.0,0.20724725]
[1737601406829,1.57837715,102710.0,102700.0,0.10987725]
[1737601407173,1.48101615,102710.0,102700.0,0.20724725]
[1737601407622,1.49993315,102710.0,102700.0,0.20724725]
[1737601408354,1.51993315,102710.0,102700.0,0.10987725]
[1737601408541,1.61729415,102710.0,102700.0,0.10987725]
[1737601408879,1.61729415,102710.0,102700.0,0.20724725]
[1737601409717,1.40720327,102710.0,102700.0,0.20724725]
[1737601409916,1.32228627,102710.0,102700.0,0.20724725]
[1737601410187,1.33212627,102710.0,102700.0,0.20724725]
[1737601410392,0.46742627,102710.0,102700.0,0.20724725]
[1737601410641,0.46742627,102710.0,102700.0,0.35724725]
[1737601410642,0.28483898,102710.0,102700.0,0.35724725]
[1737601410851,0.30383898,102710.0,102700.0,0.59324725]
[1737601411014,0.28483898,102710.0,102700.0,0.47724725]
[1737601411217,0.28483898,102710.0,102700.0,0.55434725]
[1737601411437,0.28483898,102710.0,102700.0,0.76127296]
[1737601411875,0.28483898,102710.0,102700.0,0.80897296]
[1737601413058,0.30383898,102710.0,102700.0,0.80897296]
[1737601413434,0.30383898,102710.0,102700.0,0.69939454]
[1737601413639,0.30383898,102710.0,102700.0,0.80897296]
[1737601414848,0.28483898,102710.0,102700.0,0.80897296]
[1737601415080,0.30383898,102710.0,102700.0,0.80897296]
[1737601416909,0.28483898,102710.0,102700.0,0.80897296]
[1737601417111,0.30383898,102710.0,102700.0,0.80897296]
[1737601418063,0.30383898,102710.0,102700.0,0.69939454]
[1737601418314,0.30383898,102710.0,102700.0,0.80897296]
[1737601420781,0.30383898,102710.0,102700.0,0.69939454]
[1737601420947,0.30383898,102710.0,102700.0,0.80897296]
[1737601421703,0.30383898,102710.0,102700.0,0.69939454]
[1737601421881,0.30383898,102710.0,102700.0,0.47724725]
[1737601422194,0.29463898,102710.0,102700.0,0.20724725]
[1737601422975,0.29463898,102710.0,102700.0,0.35724725]
[1737601423372,0.28483898,102710.0,102700.0,2.07144725]
[1737601423674,0.29463898,102710.0,102700.0,0.88944725]
[1737601424732,0.28483898,102710.0,102700.0,0.88944725]
[1737601424906,0.29463898,102710.0,102700.0,0.88944725]
[1737601425124,0.31363898,102710.0,102700.0,0.99902567]
[1737601425316,0.31363898,102710.0,102700.0,1.04852567]
[1737601426080,0.30383898,102710.0,102700.0,0.93894725]
[1737601428211,0.30383898,102710.0,102700.0,0.62514725]
[1737601428414,0.30383898,102710.0,102700.0,0.54654725]
[1737601428617,0.30383898,102710.0,102700.0,0.49634725]
[1737601429102,0.36653898,102710.0,102700.0,0.35724725]
[1737601429429,0.36653898,102710.0,102700.0,0.20724725]
[1737601429619,0.46388627,102710.0,102700.0,0.20724725]
[1737601431387,0.36653898,102710.0,102700.0,0.20724725]
[1737601433439,0.46388627,102710.0,102700.0,0.20724725]
[1737601433586,0.61124727,102710.0,102700.0,0.09766883]
[1737601434194,0.61124727,102710.0,102700.0,0.00029883]
[1737601434397,0.61124727,102710.0,102700.0,0.10987725]
[1737601434536,0.61124727,102710.0,102700.0,0.20724725]
[1737601434933,0.68159456,102710.0,102700.0,0.00029883]
[1737601435140,0.72879456,102710.0,102700.0,0.00029883]
[1737601435378,0.63144727,102710.0,102700.0,0.00029883]
[1737601435560,0.65057626,102710.0,102700.0,0.00029883]
[1737601437945,0.66013522,102710.0,102700.0,0.00029883]
[1737601438665,1.20213522,102710.0,102700.0,0.00029883]
[1737601440292,1.19713522,102710.0,102700.0,0.00029883]
[1737601441465,1.21713522,102710.0,102700.0,0.00029883]
[1737601441699,1.26713522,102710.0,102700.0,0.10987725]
[1737601441938,1.15957422,102710.0,102700.0,0.20724725]
[1737601442214,1.12701526,102710.0,102700.0,0.20724725]
[1737601442416,1.02981526,102710.0,102700.0,0.20724725]
[1737601443159,1.17717626,102710.0,102700.0,0.20724725]
[1737601443412,1.02981526,102710.0,102700.0,0.20724725]
[1737601443669,1.02001526,102710.0,102700.0,0.20724725]
[1737601443869,1.02981526,102710.0,102700.0,0.20724725]
[1737601444600,1.02001526,102710.0,102700.0,0.20724725]
[1737601444838,0.99811526,102710.0,102700.0,0.20724725]
[1737601445075,0.98831526,102710.0,102700.0,0.20724725]
[1737601445312,0.94811526,102710.0,102700.0,0.20724725]
[1737601446060,1.02431526,102710.0,102700.0,0.20724725]
[1737601446302,1.21467626,102710.0,102700.0,0.09766883]
[1737601446976,1.19167626,102710.0,102700.0,0.20724725]
[1737601447207,1.09431526,102710.0,102700.0,0.20724725]
[1737601447676,1.19167626,102710.0,102700.0,0.20724725]
[1737601448655,1.09431526,102710.0,102700.0,0.20724725]
[1737601449366,1.19467626,102710.0,102700.0,0.00029883]
[1737601449592,1.19097626,102710.0,102700.0,0.00029883]
[1737601450546,0.97167626,102710.0,102700.0,0.00029883]
[1737601451292,1.04167626,102710.0,102700.0,0.20724725]
[1737601451527,0.97167626,102710.0,102700.0,0.00029883]
[1737601452044,0.64897626,102710.0,102700.0,0.00029883]
[1737601455173,0.57531526,102710.0,102700.0,0.20724725]
[1737601455415,0.27983898,102710.0,102700.0,0.40274725]
[1737601457109,0.28963898,102710.0,102700.0,0.40274725]
[1737601457310,0.28963898,102710.0,102700.0,0.41253088]
[1737601458633,0.27983898,102710.0,102700.0,0.41253088]
[1737601458838,0.28963898,102710.0,102700.0,0.41253088]
[1737601462851,0.37718627,102710.0,102700.0,0.21703088]
[1737601463075,0.63404727,102710.0,102700.0,0.00029883]
[1737601463358,0.65704727,102710.0,102700.0,0.00029883]
[1737601463567,1.14904727,102710.0,102700.0,0.00029883]
[1737601463772,1.12904727,102710.0,102700.0,0.00029883]
[1737601465214,1.14904727,102710.0,102700.0,0.09766883]
[1737601465409,1.14904727,102710.0,102700.0,0.20724725]
[1737601466326,1.05168627,102710.0,102700.0,0.20724725]
[1737601466544,1.14904727,102710.0,102700.0,0.20724725]
[1737601466757,0.91918627,102710.0,102700.0,0.20724725]
[1737601466935,0.92898627,102710.0,102700.0,0.20724725]
[1737601468129,0.38698627,102710.0,102700.0,0.20724725]
[1737601469585,0.50434727,102710.0,102700.0,0.09766883]
[1737601469830,0.57734727,102710.0,102700.0,0.00029883]
[1737601471283,0.57734727,102710.0,102700.0,0.09766883]
[1737601471482,0.38698627,102710.0,102700.0,0.20724725]
[1737601471861,0.37718627,102710.0,102700.0,0.20724725]
[1737601472065,0.38698627,102710.0,102700.0,0.35724725]
[1737601472221,0.29883898,102710.0,102700.0,0.43304725]
[1737601472575,0.30863898,102710.0,102700.0,0.43304725]
[1737601473511,0.29883898,102710.0,102700.0,0.43304725]
[1737601473933,0.28963898,102710.0,102700.0,0.54262567]
[1737601474108,0.28963898,102710.0,102700.0,3.61172567]
[1737601475287,0.28963898,102710.0,102700.0,3.54332567]
[1737601475486,0.30863898,102710.0,102700.0,2.57174725]
[1737601476113,0.30863898,102710.0,102700.0,2.43714725]
[1737601477493,0.30863898,102710.0,102700.0,1.09080147]
[1737601477691,0.30863898,102710.0,102700.0,0.58400147]
[1737601477895,0.28963898,102710.0,102700.0,0.36700147]
[1737601480549,0.30863898,102710.0,102700.0,0.47657989]
[1737601480767,0.28963898,102710.0,102700.0,2.50747989]
[1737601480966,0.28963898,102710.0,102700.0,2.39790147]
[1737601481245,0.27983898,102710.0,102700.0,0.44620147]
[1737601481437,0.28963898,102710.0,102700.0,0.44620147]
[1737601484278,0.27983898,102710.0,102700.0,0.44620147]
[1737601484478,0.28963898,102710.0,102700.0,0.44620147]
[1737601485044,0.28963898,102710.0,102700.0,2.11700147]
[1737601486169,0.28963898,102710.0,102700.0,2.22657989]
[1737601486359,0.28963898,102710.0,102700.0,2.11700147]
[1737601486992,0.28963898,102710.0,102700.0,1.35710147]
[1737601487200,0.28963898,102710.0,102700.0,0.74930147]
[1737601487442,0.27983898,102710.0,102700.0,0.74930147]
[1737601487599,0.28963898,102710.0,102700.0,0.44620147]
[1737601488835,0.28963898,102710.0,102700.0,0.36700147]
[1737601490035,0.30863898,102710.0,102700.0,0.36700147]
[1737601490219,0.28963898,102710.0,102700.0,0.36700147]
[1737601492633,0.37718627,102710.0,102700.0,0.36700147]